fUSD/lending_fUSD_20250923
["ID","MTS","AMOUNT","RATE_DAILY","PERIOD"]
[387243709,1758664347756,-1169.14,0.00026301,3]
[387243710,1758664347772,-1595.32,0.00026301,3]
[387243711,1758664347788,-400.0,0.00026301,3]
[387243712,1758664347803,-1049.38,0.00026301,3]
[387243713,1758664347817,-400.0,0.00026301,3]
[387243714,1758664347832,-4079.21,0.00026301,3]
[387243715,1758664347846,-685.44,0.00026301,3]
[387243716,1758664347860,-400.0,0.00026301,3]
[387243717,1758664347875,-2510.3,0.00026301,3]
[387243718,1758664347891,-1890.53,0.00026301,3]
[387243719,1758664347905,-1678.52,0.00026301,3]
[387243720,1758664347920,-16706.02,0.00026301,3]
[387243721,1758664347935,-400.0,0.00026301,3]
[387243722,1758664347950,-400.0,0.00026301,3]
[387243723,1758664347966,-4251.49,0.00026301,3]
[387243724,1758664347983,-2074.52,0.00026301,3]
[387243725,1758664348000,-400.0,0.00026301,3]
[387243726,1758664348016,-400.0,0.00026301,3]
[387243727,1758664348031,-689.28,0.00026301,3]
[387243728,1758664348046,-720.98,0.00026301,3]
[387243729,1758664348061,-400.0,0.00026301,3]
[387243730,1758664348075,-400.0,0.00026301,3]
[387243731,1758664348089,-3330.98,0.00026301,3]
[387243732,1758664348104,-425.15,0.00026301,3]
[387243733,1758664348506,-487.18,0.00026301,3]
[387243734,1758664348525,-605.39,0.00026301,3]
[387243735,1758664348535,-400.0,0.00026301,3]
[387243736,1758664348544,-13418.14,0.00026301,3]
[387243737,1758664348553,-425.07,0.00026301,3]
[387243738,1758664348563,-630.04,0.00026301,3]
[387243739,1758664348572,-507.22,0.00026301,3]
[387243740,1758664348581,-1822.56,0.00026301,3]
[387243741,1758664348590,-2046.35,0.00026301,3]
[387243742,1758664348601,-1189.77,0.00026301,3]
[387243743,1758664348610,-400.0,0.00026301,3]
[387243744,1758664348619,-908.29,0.00026301,3]
[387243745,1758664348629,-472.22,0.00026301,3]
[387243746,1758664348638,-752.17,0.00026301,3]
[387243747,1758664348647,-2819.02,0.00026301,3]
[387243748,1758664348657,-400.0,0.00026301,3]
[387243749,1758664348667,-400.0,0.00026301,3]
[387243750,1758664348676,-2102.44,0.00026301,3]
[387243751,1758664348685,-7047.04,0.00026301,3]
[387243752,1758664348695,-624.12,0.00026301,3]
[387243753,1758664348704,-1532.57,0.00026301,3]
[387243754,1758664348713,-1073.44,0.00026301,3]
[387243755,1758664348723,-258.68999802,0.00026301,3]
[387243756,1758664348732,-287768.75911101,0.00026301,2]
[387243757,1758664348741,-2008.36059818,0.00026316,2]
[387243758,1758664348750,-472.08794461,0.00026316,2]
[387243759,1758664348760,-500.0,0.00026316,2]
[387243760,1758664348769,-1062.55697924,0.00026318,2]
[387243761,1758664348778,-250.0,0.00026321,2]
[387243762,1758664348788,-671.0,0.00026363,2]
[387243763,1758664348797,-168.0,0.00026363,2]
[387243764,1758664348806,-500.0,0.0002638,2]
[387243765,1758664348816,-500.0,0.0002638,2]
[387243766,1758664348826,-1233.0,0.0002638,2]
[387243767,1758664348835,-500.0,0.0002638,2]
[387243768,1758664348850,-200.0,0.0002638,2]
[387243769,1758664348859,-500.0,0.0002638,2]
[387243770,1758664348869,-198.90499701,0.0002638,2]
[387243771,1758664348877,-434.0,0.0002638,2]
[387243772,1758664348887,-20000.0,0.00026396,2]
[387243773,1758664348896,-26995.15022255,0.000264,2]
[387243774,1758664348905,-25389.96,0.000264,7]
[387243775,1758664348915,-2728.75867,0.0002641,2]
[387243776,1758664348924,-400.0,0.00026443,3]
[387243777,1758664348933,-300.0,0.000265,2]
[387243778,1758664348942,-947.43,0.00026533,3]
[387243779,1758664348951,-152.0,0.00026573,7]
[387243780,1758664348962,-403.15,0.00026575,3]
[387243781,1758664348970,-400.0,0.00026575,3]
[387243782,1758664348979,-400.0,0.00026575,3]
[387243783,1758664348988,-422.15,0.00026575,3]
[387243784,1758664348997,-400.0,0.00026575,3]
[387243785,1758664349006,-400.0,0.00026575,3]
[387243786,1758664349015,-400.0,0.00026575,3]
[387243787,1758664349025,-400.0,0.00026575,3]
[387243788,1758664349034,-722.3,0.00026575,3]
[387243789,1758664349042,-400.0,0.00026575,3]
[387243790,1758664349051,-425.13,0.00026575,3]
[387243791,1758664349060,-400.0,0.00026575,3]
[387243792,1758664349069,-463.61,0.00026575,3]
[387243793,1758664349079,-400.0,0.00026575,3]
[387243794,1758664349088,-400.81,0.00026575,3]
[387243795,1758664349097,-606.67,0.00026575,3]
[387243796,1758664349106,-558.51,0.00026575,3]
[387243797,1758664349115,-400.0,0.00026575,3]
[387243798,1758664349124,-517.79,0.00026575,3]
[387243799,1758664349134,-410.1,0.00026575,3]
[387243800,1758664349143,-513.24,0.00026575,3]
[387243801,1758664349152,-864.38,0.00026575,3]
[387243802,1758664349161,-400.0,0.00026575,3]
[387243803,1758664349171,-400.0,0.00026575,3]
[387243804,1758664349180,-400.0,0.00026575,3]
[387243805,1758664349189,-400.0,0.00026575,3]
[387243806,1758664349199,-400.0,0.00026575,3]
[387243807,1758664349207,-399.43695328,0.00026575,3]
[387243808,1758664349216,-400.0,0.00026575,3]
[387243809,1758664349226,-1162.37,0.00026575,3]
[387243810,1758664349235,-1113.94,0.00026575,3]
[387243811,1758664349244,-1113.94,0.00026575,3]
[387243812,1758664349254,-400.0,0.00026575,3]
[387243813,1758664349263,-499.32,0.00026575,3]
[387243814,1758664349273,-400.0,0.00026575,3]
[387243815,1758664349282,-400.0,0.00026575,3]
[387243816,1758664349291,-400.0,0.00026575,3]
[387243817,1758664349301,-274.96,0.00026575,3]
[387243818,1758664349313,-701.54,0.00026575,3]
[387243819,1758664349324,-761.54,0.00026575,3]
[387243820,1758664349334,-448.15,0.00026575,3]
[387243821,1758664349343,-527.27,0.00026575,3]
[387243822,1758664349352,-400.0,0.00026575,3]
[387243823,1758664349361,-400.0,0.00026575,3]
[387243824,1758664349370,-400.0,0.00026575,3]
[387243825,1758664349378,-433.43,0.00026575,3]
[387243826,1758664349387,-400.0,0.00026575,3]
[387243827,1758664349401,-1431.46,0.00026575,3]
[387243828,1758664349410,-400.0,0.00026575,3]
[387243829,1758664349419,-888.36,0.00026575,3]
[387243830,1758664349429,-400.0,0.00026575,3]
[387243831,1758664349439,-400.0,0.00026575,3]
[387243832,1758664349448,-500.78,0.00026575,3]
[387243833,1758664349457,-400.0,0.00026575,3]
[387243834,1758664349467,-400.0,0.00026575,3]
[387243835,1758664349477,-415.37,0.00026575,3]
[387243836,1758664349487,-400.0,0.00026575,3]
[387243837,1758664349496,-851.65,0.00026575,3]
[387243838,1758664349506,-469.22,0.00026575,3]
[387243839,1758664349516,-449.67,0.00026575,3]
[387243840,1758664349526,-514.2,0.00026575,3]
[387243841,1758664349535,-696.09,0.00026575,3]
[387243842,1758664349544,-400.0,0.00026575,3]
[387243843,1758664349554,-942.3,0.00026575,3]
[387243844,1758664349563,-401.11,0.00026575,3]
[387243845,1758664349573,-426.89,0.00026575,3]
[387243846,1758664349583,-409.1,0.00026575,3]
[387243847,1758664349593,-400.0,0.00026575,3]
[387243848,1758664349603,-400.0,0.00026575,3]
[387243849,1758664349613,-483.66,0.00026575,3]
[387243850,1758664349622,-700.73,0.00026575,3]
[387243851,1758664349631,-1218.15,0.00026575,3]
[387243852,1758664349641,-432.38,0.00026575,3]
[387243853,1758664349650,-400.0,0.00026575,3]
[387243854,1758664349660,-400.0,0.00026575,3]
[387243855,1758664349669,-413.32,0.00026575,3]
[387243856,1758664349680,-600.39,0.00026575,3]
[387243857,1758664349689,-400.0,0.00026575,3]
[387243858,1758664349698,-400.0,0.00026575,3]
[387243859,1758664349707,-525.79,0.00026575,3]
[387243860,1758664349716,-404.0731694,0.00026575,3]
[387243861,1758664349726,-400.0,0.00026575,3]
[387243862,1758664349735,-585.89,0.00026575,3]
[387243863,1758664349745,-400.0,0.00026575,3]
[387243864,1758664349755,-1162.35,0.00026575,3]
[387243865,1758664349766,-869.19,0.00026575,3]
[387243866,1758664349775,-683.96,0.00026575,3]
[387243867,1758664349785,-400.0,0.00026575,3]
[387243868,1758664349794,-853.3,0.00026575,3]
[387243869,1758664349804,-400.0,0.00026575,3]
[387243870,1758664349813,-400.0,0.00026575,3]
[387243871,1758664349823,-684.3,0.00026575,3]
[387243872,1758664349832,-714.46,0.00026575,3]
[387243873,1758664349842,-684.69,0.00026575,3]
[387243874,1758664349851,-433.77,0.00026575,3]
[387243875,1758664349860,-400.0,0.00026575,3]
[387243876,1758664349871,-400.0,0.00026575,3]
[387243877,1758664349881,-400.0,0.00026575,3]
[387243878,1758664349892,-451.05,0.00026575,3]
[387243879,1758664349902,-1130.1,0.00026575,3]
[387243880,1758664349911,-1034.82,0.00026575,3]
[387243881,1758664349921,-414.11,0.00026575,3]
[387243882,1758664349930,-400.0,0.00026575,3]
[387243883,1758664349939,-400.0,0.00026575,3]
[387243884,1758664349948,-400.0,0.00026575,3]
[387243885,1758664349957,-568.34,0.00026575,3]
[387243886,1758664349967,-497.27,0.00026575,3]
[387243887,1758664349976,-400.0,0.00026575,3]
[387243888,1758664349985,-483.14,0.00026575,3]
[387243889,1758664349994,-400.0,0.00026575,3]
[387243890,1758664350004,-400.0,0.00026575,3]
[387243891,1758664350013,-400.0,0.00026575,3]
[387243892,1758664350022,-963.02,0.00026575,3]
[387243893,1758664350031,-442.92,0.00026575,3]
[387243894,1758664350041,-400.0,0.00026575,3]
[387243895,1758664350051,-400.0,0.00026575,3]
[387243896,1758664350060,-420.23574019,0.00026575,3]
[387243897,1758664350070,-419.2,0.00026575,3]
[387243898,1758664350079,-328.65038291,0.00026575,3]
[387243899,1758664350088,-495.44,0.00026575,3]
[387243900,1758664350098,-400.0,0.00026575,3]
[387243901,1758664350107,-1113.1,0.00026575,3]
[387243902,1758664350116,-564.87,0.00026575,3]
[387243903,1758664350125,-400.0,0.00026575,3]
[387243904,1758664350135,-400.0,0.00026575,3]
[387243905,1758664350144,-400.0,0.00026575,3]
[387243906,1758664350153,-442.1,0.00026575,3]
[387243907,1758664350163,-612.62,0.00026575,3]
[387243908,1758664350172,-400.0,0.00026575,3]
[387243909,1758664350181,-544.44,0.00026575,3]
[387243910,1758664350191,-553.48,0.00026575,3]
[387243911,1758664350202,-811.92,0.00026575,3]
[387243912,1758664350211,-866.52,0.00026575,3]
[387243913,1758664350221,-400.0,0.00026575,3]
[387243914,1758664350230,-400.0,0.00026575,3]
[387243915,1758664350240,-1271.99,0.00026575,3]
[387243916,1758664350249,-400.0,0.00026575,3]
[387243917,1758664350259,-555.94,0.00026575,3]
[387243918,1758664350269,-400.0,0.00026575,3]
[387243919,1758664350278,-516.66,0.00026575,3]
[387243920,1758664350287,-443.34,0.00026575,3]
[387243921,1758664350296,-460.81,0.00026575,3]
[387243922,1758664350305,-400.0,0.00026575,3]
[387243923,1758664350314,-400.0,0.00026575,3]
[387243924,1758664350323,-502.53,0.00026575,3]
[387243925,1758664350332,-505.37,0.00026575,3]
[387243926,1758664350346,-542.19,0.00026575,3]
[387243927,1758664350356,-688.7,0.00026575,3]
[387243928,1758664350366,-1015.44,0.00026575,3]
[387243929,1758664350375,-1292.63,0.00026575,3]
[387243930,1758664350384,-400.0,0.00026575,3]
[387243931,1758664350397,-1611.73,0.00026575,3]
[387243932,1758664350406,-637.7,0.00026575,3]
[387243933,1758664350415,-1000.0,0.00026575,3]
[387243934,1758664350426,-660.83,0.00026575,3]
[387243935,1758664350438,-549.84,0.00026575,3]
[387243936,1758664350448,-1262.83,0.00026575,3]
[387243937,1758664350458,-400.0,0.00026575,3]
[387243938,1758664350469,-511.14,0.00026575,3]
[387243939,1758664350479,-1072.23,0.00026575,3]
[387243940,1758664350489,-435.66,0.00026575,3]
[387243941,1758664350499,-400.0,0.00026575,3]
[387243942,1758664350508,-446.42,0.00026575,3]
[387243943,1758664350518,-956.24,0.00026575,3]
[387243944,1758664350528,-804.81,0.00026575,3]
[387243945,1758664350537,-493.33,0.00026575,3]
[387243946,1758664350547,-400.0,0.00026575,3]
[387243947,1758664350557,-400.0,0.00026575,3]
[387243948,1758664350567,-400.0,0.00026575,3]
[387243949,1758664350577,-400.0,0.00026575,3]
[387243950,1758664350586,-400.0,0.00026575,3]
[387243951,1758664350596,-425.12,0.00026575,3]
[387243952,1758664350605,-400.0,0.00026575,3]
[387243953,1758664350615,-400.0,0.00026575,3]
[387243954,1758664350625,-400.0,0.00026575,3]
[387243955,1758664350634,-536.14,0.00026575,3]
[387243956,1758664350644,-400.0,0.00026575,3]
[387243957,1758664350653,-400.0,0.00026575,3]
[387243958,1758664350663,-400.0,0.00026575,3]
[387243959,1758664350673,-400.0,0.00026575,3]
[387243960,1758664350683,-168.80678747,0.00026575,3]
[387243961,1758664350692,-647.53,0.00026575,3]
[387243962,1758664350702,-1446.35,0.00026575,3]
[387243963,1758664350711,-400.0,0.00026575,3]
[387243964,1758664350721,-400.0,0.00026575,3]
[387243965,1758664350730,-400.0,0.00026575,3]
[387243966,1758664350740,-400.0,0.00026575,3]
[387243967,1758664350750,-712.76,0.00026575,3]
[387243968,1758664350759,-400.0,0.00026575,3]
[387243969,1758664350769,-742.51,0.00026575,3]
[387243970,1758664350778,-400.0,0.00026575,3]
[387243971,1758664350788,-400.0,0.00026575,3]
[387243972,1758664350798,-609.25,0.00026575,3]
[387243973,1758664350808,-1004.12,0.00026575,3]
[387243974,1758664350817,-400.0,0.00026575,3]
[387243975,1758664350827,-1267.73,0.00026575,3]
[387243976,1758664350837,-400.0,0.00026575,3]
[387243977,1758664350846,-1089.2,0.00026575,3]
[387243978,1758664350856,-400.0,0.00026575,3]
[387243979,1758664350866,-400.0,0.00026575,3]
[387243980,1758664350876,-936.94,0.00026575,3]
[387243981,1758664350886,-400.0,0.00026575,3]
[387243982,1758664350897,-400.0,0.00026575,3]
[387243983,1758664350907,-400.0,0.00026575,3]
[387243984,1758664350917,-628.73,0.00026575,3]
[387243985,1758664350927,-792.8,0.00026575,3]
[387243986,1758664350937,-718.2,0.00026575,3]
[387243987,1758664350947,-771.65,0.00026575,3]
[387243988,1758664350957,-735.99,0.00026575,3]
[387243989,1758664350967,-724.09,0.00026575,3]
[387243990,1758664350977,-400.0,0.00026575,3]
[387243991,1758664350987,-400.0,0.00026575,3]
[387243992,1758664350997,-735.82,0.00026575,3]
[387243993,1758664351006,-400.0,0.00026575,3]
[387243994,1758664351016,-400.0,0.00026575,3]
[387243995,1758664351026,-400.0,0.00026575,3]
[387243996,1758664351036,-724.51,0.00026575,3]
[387243997,1758664351046,-590.38,0.00026575,3]
[387243998,1758664351055,-400.0,0.00026575,3]
[387243999,1758664351065,-443.29,0.00026575,3]
[387244000,1758664351076,-424.82,0.00026575,3]
[387244001,1758664351086,-704.47,0.00026575,3]
[387244002,1758664351097,-236.9995805,0.00026575,3]
[387244003,1758664351107,-597.65,0.00026575,3]
[387244004,1758664351117,-644.02,0.00026575,3]
[387244005,1758664351126,-490.6,0.00026575,3]
[387244006,1758664351135,-544.45,0.00026575,3]
[387244007,1758664351145,-400.0,0.00026575,3]
[387244008,1758664351154,-400.0,0.00026575,3]
[387244009,1758664351164,-400.0,0.00026575,3]
[387244010,1758664351173,-1124.92,0.00026575,3]
[387244011,1758664351183,-400.98,0.00026575,3]
[387244012,1758664351193,-1607.1,0.00026575,3]
[387244013,1758664351203,-643.25,0.00026575,3]
[387244014,1758664351212,-400.0,0.00026575,3]
[387244015,1758664351222,-400.0,0.00026575,3]
[387244016,1758664351231,-400.0,0.00026575,3]
[387244017,1758664351240,-702.26,0.00026575,3]
[387244018,1758664351250,-623.69,0.00026575,3]
[387244019,1758664351259,-400.0,0.00026575,3]
[387244020,1758664351268,-400.0,0.00026575,3]
[387244021,1758664351277,-1080.61,0.00026575,3]
[387244022,1758664351287,-422.24,0.00026575,3]
[387244023,1758664351296,-417.7,0.00026575,3]
[387244024,1758664351305,-909.48,0.00026575,3]
[387244025,1758664351315,-400.0,0.00026575,3]
[387244026,1758664351325,-515.95,0.00026575,3]
[387244027,1758664351335,-400.0,0.00026575,3]
[387244028,1758664351344,-419.15,0.00026575,3]
[387244029,1758664351353,-1535.1,0.00026575,3]
[387244030,1758664351363,-421.32,0.00026575,3]
[387244031,1758664351373,-610.62,0.00026575,3]
[387244032,1758664351382,-346.72006698,0.00026575,3]
[387244033,1758664351391,-400.0,0.00026575,3]
[387244034,1758664351404,-400.0,0.00026575,3]
[387244035,1758664351413,-788.82,0.00026575,3]
[387244036,1758664351422,-501.25,0.00026575,3]
[387244037,1758664351432,-400.0,0.00026575,3]
[387244038,1758664351442,-400.0,0.00026575,3]
[387244039,1758664351452,-400.0,0.00026575,3]
[387244040,1758664351461,-400.0,0.00026575,3]
[387244041,1758664351473,-400.0,0.00026575,3]
[387244042,1758664351483,-467.58,0.00026575,3]
[387244043,1758664351493,-614.35,0.00026575,3]
[387244044,1758664351503,-387.17,0.00026575,3]
[387244045,1758664351513,-686.69,0.00026575,3]
[387244046,1758664351523,-400.0,0.00026575,3]
[387244047,1758664351533,-400.0,0.00026575,3]
[387244048,1758664351542,-400.0,0.00026575,3]
[387244049,1758664351552,-1284.73,0.00026575,3]
[387244050,1758664351829,-642.36,0.00026575,3]
[387244051,1758664351839,-560.54,0.00026575,3]
[387244052,1758664351848,-1073.37,0.00026575,3]
[387244053,1758664351857,-400.0,0.00026575,3]
[387244054,1758664351866,-753.1,0.00026575,3]
[387244055,1758664351875,-400.0,0.00026575,3]
[387244056,1758664351884,-545.97,0.00026575,3]
[387244057,1758664351894,-400.0,0.00026575,3]
[387244058,1758664351903,-400.0,0.00026575,3]
[387244059,1758664351912,-580.05,0.00026575,3]
[387244060,1758664351922,-1196.06,0.00026575,3]
[387244061,1758664351931,-779.4,0.00026575,3]
[387244062,1758664351940,-1387.31,0.00026575,3]
[387244063,1758664351950,-400.0,0.00026575,3]
[387244064,1758664351959,-526.44,0.00026575,3]
[387244065,1758664351969,-914.9,0.00026575,3]
[387244066,1758664351979,-400.0,0.00026575,3]
[387244067,1758664351988,-751.05,0.00026575,3]
[387244068,1758664351997,-10481.21,0.00026575,3]
[387244069,1758664352008,-400.0,0.00026575,3]
[387244070,1758664352018,-585.69,0.00026575,3]
[387244071,1758664352029,-400.0,0.00026575,3]
[387244072,1758664352039,-1984.04,0.00026575,3]
[387244073,1758664352048,-1075.59,0.00026575,3]
[387244074,1758664352058,-1243.9,0.00026575,3]
[387244075,1758664352068,-2675.56,0.00026575,3]
[387244076,1758664352077,-1687.56,0.00026575,3]
[387244077,1758664352086,-603.56,0.00026575,3]
[387244078,1758664352096,-400.0,0.00026575,3]
[387244079,1758664352105,-613.2,0.00026575,3]
[387244080,1758664352114,-1380.17,0.00026575,3]
[387244081,1758664352125,-400.0,0.00026575,3]
[387244082,1758664352134,-400.0,0.00026575,3]
[387244083,1758664352143,-637.31,0.00026575,3]
[387244084,1758664352153,-536.31,0.00026575,3]
[387244085,1758664352162,-400.0,0.00026575,3]
[387244086,1758664352171,-1960.16,0.00026575,3]
[387244087,1758664352180,-653.4,0.00026575,3]
[387244088,1758664352191,-400.0,0.00026575,3]
[387244089,1758664352201,-3596.07,0.00026575,3]
[387244090,1758664352211,-400.0,0.00026575,3]
[387244091,1758664352221,-1811.83,0.00026575,3]
[387244092,1758664352230,-400.0,0.00026575,3]
[387244093,1758664352240,-485.31,0.00026575,3]
[387244094,1758664352250,-609.4,0.00026575,3]
[387244095,1758664352260,-1777.36,0.00026575,3]
[387244096,1758664352269,-955.0,0.00026575,3]
[387244097,1758664352279,-1530.13,0.00026575,3]
[387244098,1758664352289,-400.0,0.00026575,3]
[387244099,1758664352298,-1065.12,0.00026575,3]
[387244100,1758664352307,-400.0,0.00026575,3]
[387244101,1758664352318,-624.46,0.00026575,3]
[387244102,1758664352328,-668.62,0.00026575,3]
[387244103,1758664352338,-400.0,0.00026575,3]
[387244104,1758664352348,-766.88,0.00026575,3]
[387244105,1758664352358,-488.82,0.00026575,3]
[387244106,1758664352368,-400.0,0.00026575,3]
[387244107,1758664352377,-674.88,0.00026575,3]
[387244108,1758664352387,-1866.98,0.00026575,3]
[387244109,1758664352400,-2251.93,0.00026575,3]
[387244110,1758664352410,-362.39,0.00026575,3]
[387244111,1758664352419,-507.6,0.00026575,3]
[387244112,1758664352429,-1430.39,0.00026575,3]
[387244113,1758664352440,-1005.24,0.00026575,3]
[387244114,1758664352450,-400.0,0.00026575,3]
[387244115,1758664352460,-706.55,0.00026575,3]
[387244116,1758664352472,-400.0,0.00026575,3]
[387244117,1758664352482,-471.06,0.00026575,3]
[387244118,1758664352492,-440.49,0.00026575,3]
[387244119,1758664352501,-1632.87,0.00026575,3]
[387244120,1758664352511,-2172.06,0.00026575,3]
[387244121,1758664352521,-1577.53,0.00026575,3]
[387244122,1758664352531,-573.43,0.00026575,3]
[387244123,1758664352541,-1762.21,0.00026575,3]
[387244124,1758664352551,-2598.87,0.00026575,3]
[387244125,1758664352560,-2106.48,0.00026575,3]
[387244126,1758664352570,-400.0,0.00026575,3]
[387244127,1758664352581,-2137.16,0.00026575,3]
[387244128,1758664352591,-1633.99,0.00026575,3]
[387244129,1758664352602,-665.33,0.00026575,3]
[387244130,1758664352612,-400.0,0.00026575,3]
[387244131,1758664352621,-507.04,0.00026575,3]
[387244132,1758664352631,-652.14,0.00026575,3]
[387244133,1758664352641,-2272.09,0.00026575,3]
[387244134,1758664352651,-441.78,0.00026575,3]
[387244135,1758664352661,-2095.57,0.00026575,3]
[387244136,1758664352671,-2047.84,0.00026575,3]
[387244137,1758664352681,-425.92,0.00026575,3]
[387244138,1758664352691,-400.0,0.00026575,3]
[387244139,1758664352701,-782.31,0.00026575,3]
[387244140,1758664352710,-1845.88,0.00026575,3]
[387244141,1758664352720,-1531.58,0.00026575,3]
[387244142,1758664352730,-1188.08,0.00026575,3]
[387244143,1758664352740,-400.0,0.00026575,3]
[387244144,1758664352749,-1490.46,0.00026575,3]
[387244145,1758664352759,-2033.65,0.00026575,3]
[387244146,1758664352769,-2177.65,0.00026575,3]
[387244147,1758664352778,-2728.22,0.00026575,3]
[387244148,1758664352789,-400.0,0.00026575,3]
[387244149,1758664352799,-457.97,0.00026575,3]
[387244150,1758664352808,-457.97,0.00026575,3]
[387244151,1758664352818,-400.0,0.00026575,3]
[387244152,1758664352828,-1405.11,0.00026575,3]
[387244153,1758664352837,-680.61,0.00026575,3]
[387244154,1758664352848,-1113.08,0.00026575,3]
[387244155,1758664352857,-400.0,0.00026575,3]
[387244156,1758664352867,-1415.66,0.00026575,3]
[387244157,1758664352876,-1312.62,0.00026575,3]
[387244158,1758664352886,-1698.64,0.00026575,3]
[387244159,1758664352896,-769.12,0.00026575,3]
[387244160,1758664352906,-1079.65,0.00026575,3]
[387244161,1758664352915,-400.0,0.00026575,3]
[387244162,1758664352925,-916.94,0.00026575,3]
[387244163,1758664352935,-400.0,0.00026575,3]
[387244164,1758664352944,-2186.72,0.00026575,3]
[387244165,1758664352954,-546.81,0.00026575,3]
[387244166,1758664352964,-485.45,0.00026575,3]
[387244167,1758664352974,-952.65,0.00026575,3]
[387244168,1758664352983,-643.52,0.00026575,3]
[387244169,1758664352993,-400.0,0.00026575,3]
[387244170,1758664353003,-400.0,0.00026575,3]
[387244171,1758664353012,-1510.65,0.00026575,3]
[387244172,1758664353023,-1538.99,0.00026575,3]
[387244173,1758664353032,-400.0,0.00026575,3]
[387244174,1758664353043,-400.0,0.00026575,3]
[387244175,1758664353053,-400.0,0.00026575,3]
[387244176,1758664353062,-400.0,0.00026575,3]
[387244177,1758664353072,-767.66,0.00026575,3]
[387244178,1758664353082,-400.0,0.00026575,3]
[387244179,1758664353092,-1183.46,0.00026575,3]
[387244180,1758664353103,-1025.71,0.00026575,3]
[387244181,1758664353113,-1292.75,0.00026575,3]
[387244182,1758664353124,-1576.62,0.00026575,3]
[387244183,1758664353134,-311.32,0.00026575,3]
[387244184,1758664353144,-589.78,0.00026575,3]
[387244185,1758664353154,-533.34,0.00026575,3]
[387244186,1758664353165,-400.0,0.00026575,3]
[387244187,1758664353175,-400.0,0.00026575,3]
[387244188,1758664353185,-2168.52,0.00026575,3]
[387244189,1758664353195,-400.0,0.00026575,3]
[387244190,1758664353205,-400.0,0.00026575,3]
[387244191,1758664353215,-1248.87,0.00026575,3]
[387244192,1758664353224,-1438.1,0.00026575,3]
[387244193,1758664353235,-801.34,0.00026575,3]
[387244194,1758664353244,-400.0,0.00026575,3]
[387244195,1758664353254,-1355.06,0.00026575,3]
[387244196,1758664353264,-1989.17,0.00026575,3]
[387244197,1758664353274,-1742.92,0.00026575,3]
[387244198,1758664353284,-1035.45,0.00026575,3]
[387244199,1758664353294,-400.0,0.00026575,3]
[387244200,1758664353304,-466.56,0.00026575,3]
[387244201,1758664353314,-1515.98,0.00026575,3]
[387244202,1758664353324,-1785.83,0.00026575,3]
[387244203,1758664353333,-635.55,0.00026575,3]
[387244204,1758664353343,-1514.01,0.00026575,3]
[387244205,1758664353353,-400.0,0.00026575,3]
[387244206,1758664353363,-400.0,0.00026575,3]
[387244207,1758664353373,-835.56,0.00026575,3]
[387244208,1758664353382,-1984.29,0.00026575,3]